Workbook

Sheet Spares (hidden)
A1: 5 Year List of Spares
A2: Spare Part | B2: Qty/year | C2: No. of Years | D2: Amount/spare | E2: Amount for 5 years
A3: 160 KV Generator | B3: 15 | C3: 5 | D3: R100,000.00 | E3: =B3*C3*D3 -> R7,500,000.00
A4: 300 KV Generator | B4: 2 | C4: 3 | D4: R1,200,000.00 | E4: =B4*C4*D4 -> R7,200,000.00
A5: HiTrax | B5: 15 | C5: 5 | D5: R80,000.00 | E5: R6,000,000.00
A6: 6046 XRC | B6: 15 | C6: 5 | D6: R40,000.00 | E6: R3,000,000.00
A7: 150150 XRC | B7: 2 | C7: 2 | D7: R150,000.00 | E7: R600,000.00
A8: Keyboard | B8: 15 | C8: 5 | D8: R1,200.00 | E8: R90,000.00
A9: Monitor | B9: 20 | C9: 5 | D9: R3,000.00 | E9: R300,000.00
A10: 4 Pin AMD Power Supply | B10: 15 | C10: 5 | D10: R7,000.00 | E10: R525,000.00
A11: 3 Pin AMD Power Supply | B11: 15 | C11: 5 | D11: R7,000.00 | E11: R525,000.00
A12: Drum Motor | B12: 10 | C12: 5 | D12: R12,000.00 | E12: R600,000.00
A13: Indicator Lamp | B13: 1000 | C13: 5 | D13: R40.00 | E13: R200,000.00
A14: 6046 Conveyor Belt | B14: 8 | C14: 5 | D14: R6,000.00 | E14: R240,000.00
A15: 100100 Conveyor Belt | B15: 2 | C15: 2 | D15: R8,000.00 | E15: R32,000.00
A16: 150150 Conveyor Belt | B16: 2 | C16: 2 | D16: R12,000.00 | E16: R48,000.00
A17: PI Board | B17: 15 | C17: 5 | D17: R32,000.00 | E17: R2,400,000.00
A18: Light Barrier | B18: 15 | C18: 5 | D18: R4,000.00 | E18: R300,000.00
A19: 6046 Lead Curtain | B19: 72 | C19: 5 | D19: R250.00 | E19: R90,000.00
A20: 100100 Lead Curtain | B20: 30 | C20: 5 | D20: R500.00 | E20: R75,000.00
A21: 150150 Lead Curtain | B21: 30 | C21: 5 | D21: R700.00 | E21: R105,000.00
A22: 150150 Tension Roller | B22: 2 | C22: 5 | D22: R2,500.00 | E22: R25,000.00
A23: Emergency Stop | B23: 15 | C23: 5 | D23: R900.00 | E23: R67,500.00
A25: TOTAL | D25: =SUM(E3:E23) -> R29,922,500.00

Sheet Summary Costs
B6: Summary
B7: Description | D7: Year 1 | E7: Year 2 | F7: Year 3 | G7: Year 4 | H7: Year 5 | I7: Total
E8: Escalation at 6%
B9: Sub Total A - Overheads | D9: ='A-Overheads'!F11 -> R9,369.00 | E9: =D9*1.06 -> R9,931.14 | F9: =E9*1.06 -> R10,527.01 | G9: =F9*1.06 -> R11,158.63 | H9: R11,828.15 | I9: =SUM(D9:H9) -> R52,813.92
B11: Sub Total B - Preventative Maintenance | D11: ='B-Preventative Maint'!X73 -> 0 | E11: =D11*1.06 -> 0 | F11: =E11*1.06 -> 0 | G11: =F11*1.06 -> 0 | H11: =G11*1.06 -> 0 | I11: =SUM(D11:H11) -> 0
B13: Sub Total C - Callouts | D13: ='C-Call Outs'!F14 -> 0 | E13: =D13*1.06 -> 0 | F13: =E13*1.06 -> 0 | G13: =F13*1.06 -> 0 | H13: =G13*1.06 -> 0 | I13: 0
B15: Sub Total D - Spares | D15: ='D-Cluster Spares'!K73 -> R220.00 | E15: =D15*1.06 -> R233.20 | F15: =E15*1.06 -> R247.19 | G15: =F15*1.06 -> R262.02 | H15: =G15*1.06 -> R277.74 | I15: R1,240.16
B17: Total Year 1 (Y1) | D17: =D9+D11+D13+D15 -> R9,589 | E17: =D17*1.06 -> R10,164.34 | F17: =E17*1.06 -> R10,774.20 | G17: =F17*1.06 -> R11,420.65 | H17: =G17*1.06 -> R12,105.89 | I17: R54,054.08
B19: Total E - Total Maintenance Cost for Five (5) Years to be Carried to the Form of Offer | I19: =SUM(I9:I18) -> R108,108.17

Sheet A-Overheads
B1: PART A: Contract Overheads
B2: Description | C2: (a) | D2: (b) | E2: Unit of measure | F2: (c) = (a) x (b)
C3: No. of units | D3: Price Per Unit | F3: Price per year
B4: Contract Management and Administration (Including required reporting such as monthly reports, spares inventory management reports, office leasing / overheads, office utilities, etc.) | C4: 12 | E4: Each | F4: =C4*D4 -> 0
B5: Safety File | C5: 9 | E5: Each | F5: =C5*D5 -> 0
B6: Permits (Provisional Sum - Re-measurable) | C6: 19 | D6: R451 | E6: Each | F6: =C6*D6 -> R8,569
B7: Parking (Provisional Sum - Re-measurable) | C7: 4 | D7: R200 | E7: Each | F7: =C7*D7 -> R800
B8: Other 1 (Specify) | E8: Each | F8: =C8*D8 -> 0
B9: Other 2 (Specify) | E9: Each | F9: 0
B11: Sub Total A - Overheads | F11: =SUM(F1:F7) -> R9,369

Sheet B-Preventative Maint
A1: PART B : Preventative Maintenance
F2: PART B1 : Monthly Services (Includes travelling and travelling time)
A3: Machine Name & Type (Only CTX and XCT) | B3: Machine Model | C3: Rate | D3: Number of Services | F3: ORTIA | H3: CTIA | J3: KSIA | L3: CDSIA | N3: GRJ | P3: KPA | R3: BFIA | T3: KIM | V3: UPN | X3: Total
F4: QTY | G4: (a) = Amount | H4: QTY | I4: (b) = Amount | J4: QTY | K4: (c) = Amount | L4: QTY | M4: (d) = Amount | N4: QTY | O4: (e) = Amount | P4: QTY | Q4: (f) = Amount | R4: QTY | S4: (g) = Amount | T4: QTY | U4: (h) = Amount | V4: QTY | W4: (i) = Amount | X4: (j) = (a) + (b) + (c) + (d) + (e) + (f) + (g) + (h) + (i)
C5: 0 | G5: =$C5*$F5*$D5 -> 0 | I5: =$C5*$H5*$D5 -> 0 | K5: =$C5*$J5*$D5 -> 0 | M5: =$C5*$L5*$D5 -> 0 | O5: =$C5*$N5*$D5 -> 0 | Q5: =$C5*$P5*$D5 -> 0 | S5: =$C5*$R5*$D5 -> 0 | U5: =$C5*$T5*$D5 -> 0 | W5: =$C5*$V5*$D5 -> 0 | X5: =G5+I5+K5+M5+O5+Q5+S5+U5+W5 -> 0
C6: 0 | G6: =$C6*$F6*$D6 -> 0 | I6: =$C6*$H6*$D6 -> 0 | K6: =$C6*$J6*$D6 -> 0 | M6: =$C6*$L6*$D6 -> 0 | O6: =$C6*$N6*$D6 -> 0 | Q6: =$C6*$P6*$D6 -> 0 | S6: =$C6*R6 -> 0 | U6: =$C6*$T6*$D6 -> 0 | W6: =$C6*$V6*$D6 -> 0 | X6: =G6+I6+K6+M6+O6+Q6+S6+U6+W6 -> 0
C7: 0 | G7: 0 | I7: 0 | K7: 0 | M7: 0 | O7: 0 | Q7: 0 | S7: 0 | U7: 0 | W7: 0 | X7: 0
C8: 0 | G8: 0 | I8: 0 | K8: 0 | M8: 0 | O8: 0 | Q8: 0 | S8: 0 | U8: 0 | W8: 0 | X8: 0
C9: 0 | G9: 0 | I9: 0 | K9: 0 | M9: 0 | O9: 0 | Q9: 0 | S9: 0 | U9: 0 | W9: 0 | X9: 0
C10: 0 | G10: 0 | I10: 0 | K10: 0 | M10: 0 | O10: 0 | Q10: 0 | S10: 0 | U10: 0 | W10: 0 | X10: 0
C11: 0 | G11: 0 | I11: =$C11*$H11*$D11 -> 0 | K11: 0 | M11: 0 | O11: 0 | Q11: 0 | S11: 0 | U11: 0 | W11: 0 | X11: 0
C12: 0 | G12: 0 | I12: 0 | K12: 0 | M12: 0 | O12: 0 | Q12: 0 | S12: 0 | U12: 0 | W12: 0 | X12: 0
C13: 0 | G13: 0 | I13: 0 | K13: 0 | M13: 0 | O13: 0 | Q13: 0 | S13: 0 | U13: 0 | W13: 0 | X13: 0
C14: 0 | G14: 0 | I14: 0 | K14: 0 | M14: =$C14*$L14*$D14 -> 0 | O14: =$C14*$N14*$D14 -> 0 | Q14: 0 | S14: 0 | U14: =$C14*$T14*$D14 -> 0 | W14: =$C14*$V14*$D14 -> 0 | X14: 0
A15: Other 1 (Specify) | C15: 0 | G15: 0 | I15: 0 | K15: 0 | M15: =$C15*$L15*$D15 -> 0 | O15: =$C15*$N15*$D15 -> 0 | Q15: 0 | S15: 0 | U15: =$C15*$T15*$D15 -> 0 | W15: =$C15*$V15*$D15 -> 0 | X15: 0
A16: Other 2 (Specify) | C16: 0 | G16: 0 | I16: 0 | K16: 0 | M16: 0 | O16: 0 | Q16: 0 | S16: 0 | U16: 0 | W16: 0 | X16: 0
A17: Total Equipment | F17: =SUM(F5:F14) -> 0 | G17: =SUM(G5:G16) -> 0 | H17: =SUM(H5:H14) -> 0 | I17: =SUM(I5:I16) -> 0 | J17: =SUM(J5:J14) -> 0 | K17: =SUM(K5:K16) -> 0 | L17: =SUM(L5:L14) -> 0 | M17: =SUM(M5:M16) -> 0 | N17: =SUM(N5:N14) -> 0 | O17: =SUM(O5:O16) -> 0 | P17: =SUM(P5:P14) -> 0 | Q17: =SUM(Q5:Q16) -> 0 | R17: =SUM(R5:R14) -> 0 | S17: =SUM(S5:S16) -> 0 | T17: =SUM(T5:T14) -> 0 | U17: =SUM(U5:U16) -> 0 | V17: =SUM(V5:V14) -> 0 | W17: =SUM(W5:W16) -> 0 | X17: =SUM(X5:X16) -> 0
F20: PART B2 : Quarterley Services (Includes travelling and travelling time)
A21: Machine Name & Type (Only CTX and XCT) | B21: Machine Model | C21: Rate | D21: Number of Services | F21: ORTIA | H21: CTIA | J21: KSIA | L21: CDSIA | N21: GRJ | P21: KPA | R21: BFIA | T21: KIM | V21: UPN | X21: Total
F22: QTY | G22: (a) = Amount | H22: QTY | I22: (b) = Amount | J22: QTY | K22: (c) = Amount | L22: QTY | M22: (d) = Amount | N22: QTY | O22: (e) = Amount | P22: QTY | Q22: (f) = Amount | R22: QTY | S22: (g) = Amount | T22: QTY | U22: (h) = Amount | V22: QTY | W22: (i) = Amount | X22: (j) = (a) + (b) + (c) + (d) + (e) + (f) + (g) + (h) + (i)
C23: 0 | D23: 4 | G23: =$C23*$F23*$D23 -> 0 | I23: =$C23*$H23*$D23 -> 0 | K23: =$C23*$J23*$D23 -> 0 | M23: =$C23*$L23*$D23 -> 0 | O23: =$C23*$N23*$D23 -> 0 | Q23: =$C23*$P23*$D23 -> 0 | S23: =$C23*$R23*$D23 -> 0 | U23: =$C23*$T23*$D23 -> 0 | W23: =$C23*$V23*$D23 -> 0 | X23: =G23+I23+K23+M23+O23+Q23+S23+U23+W23 -> 0
C24: 0 | D24: 4 | G24: =$C24*$F24*$D24 -> 0 | I24: =$C24*$H24*$D24 -> 0 | K24: =$C24*$J24*$D24 -> 0 | M24: =$C24*$L24*$D24 -> 0 | O24: =$C24*$N24*$D24 -> 0 | Q24: =$C24*$P24*$D24 -> 0 | S24: =$C24*$R24*$D24 -> 0 | U24: =$C24*$T24*$D24 -> 0 | W24: =$C24*$V24*$D24 -> 0 | X24: =G24+I24+K24+M24+O24+Q24+S24+U24+W24 -> 0
C25: 0 | D25: 4 | G25: 0 | I25: 0 | K25: 0 | M25: 0 | O25: 0 | Q25: 0 | S25: 0 | U25: 0 | W25: 0 | X25: 0
C26: 0 | D26: 4 | G26: 0 | I26: 0 | K26: 0 | M26: 0 | O26: 0 | Q26: 0 | S26: 0 | U26: 0 | W26: 0 | X26: 0
C27: 0 | D27: 4 | G27: 0 | I27: 0 | K27: 0 | M27: 0 | O27: 0 | Q27: 0 | S27: 0 | U27: 0 | W27: 0 | X27: 0
C28: 0 | D28: 4 | G28: 0 | I28: 0 | K28: 0 | M28: 0 | O28: 0 | Q28: 0 | S28: 0 | U28: 0 | W28: 0 | X28: 0
C29: 0 | D29: 4 | G29: 0 | I29: 0 | K29: 0 | M29: 0 | O29: 0 | Q29: 0 | S29: 0 | U29: 0 | W29: 0 | X29: 0
C30: 0 | D30: 4 | G30: 0 | I30: 0 | K30: 0 | M30: 0 | O30: 0 | Q30: 0 | S30: 0 | U30: =$C30*$T30*$D30 -> 0 | W30: 0 | X30: 0
C31: 0 | D31: 4 | G31: 0 | I31: 0 | K31: 0 | M31: 0 | O31: 0 | Q31: 0 | S31: 0 | U31: 0 | W31: 0 | X31: 0
C32: 0 | D32: 4 | G32: 0 | I32: 0 | K32: =$C32*$J32*$D32 -> 0 | M32: 0 | O32: 0 | Q32: =$C32*P32 -> 0 | S32: 0 | U32: 0 | W32: 0 | X32: 0
A33: Other 1 (Specify) | C33: 0 | D33: 4 | G33: 0 | I33: 0 | K33: =$C33*$J33*$D33 -> 0 | M33: 0 | O33: 0 | Q33: =$C33*$P33*$D33 -> 0 | S33: =$C33*R33 -> 0 | U33: 0 | W33: 0 | X33: 0
A34: Other 2 (Specify) | C34: 0 | D34: 4 | G34: 0 | I34: 0 | K34: 0 | M34: 0 | O34: 0 | Q34: 0 | S34: 0 | U34: 0 | W34: 0 | X34: 0
A35: Total Equipment | F35: =SUM(F23:F32) -> 0 | G35: =SUM(G23:G34) -> 0 | H35: =SUM(H23:H32) -> 0 | I35: =SUM(I23:I34) -> 0 | J35: =SUM(J23:J32) -> 0 | K35: =SUM(K23:K34) -> 0 | L35: =SUM(L23:L32) -> 0 | M35: =SUM(M23:M34) -> 0 | N35: =SUM(N23:N32) -> 0 | O35: =SUM(O23:O34) -> 0 | P35: =SUM(P23:P32) -> 0 | Q35: =SUM(Q23:Q34) -> 0 | R35: =SUM(R23:R32) -> 0 | S35: =SUM(S23:S34) -> 0 | T35: =SUM(T23:T32) -> 0 | U35: =SUM(U23:U34) -> 0 | V35: =SUM(V23:V32) -> 0 | W35: =SUM(W23:W34) -> 0 | X35: =SUM(X23:X34) -> 0
F38: PART B3 : Six Monthly Services (Includes travelling and travelling time)
A39: Machine Name & Type (Only CTX and XCT) | B39: Machine Model | C39: Rate | D39: Number of Services | F39: ORTIA | H39: CTIA | J39: KSIA | L39: CDSIA | N39: GRJ | P39: KPA | R39: BFIA | T39: KIM | V39: UPN | X39: Total
F40: QTY | G40: (a) = Amount | H40: QTY | I40: (b) = Amount | J40: QTY | K40: (c) = Amount | L40: QTY | M40: (d) = Amount | N40: QTY | O40: (e) = Amount | P40: QTY | Q40: (f) = Amount | R40: QTY | S40: (g) = Amount | T40: QTY | U40: (h) = Amount | V40: QTY | W40: (i) = Amount | X40: (j) = (a) + (b) + (c) + (d) + (e) + (f) + (g) + (h) + (i)
C41: 0 | D41: 2 | G41: =$C41*$F41*$D41 -> 0 | I41: =$C41*$H41*$D41 -> 0 | K41: =$C41*$J41*$D41 -> 0 | M41: =$C41*$L41*$D41 -> 0 | O41: =$C41*$N41*$D41 -> 0 | Q41: =$C41*$P41*$D41 -> 0 | S41: =$C41*$R41*$D41 -> 0 | U41: =$C41*$T41*$D41 -> 0 | W41: =$C41*$V41*$D41 -> 0 | X41: =G41+I41+K41+M41+O41+Q41+S41+U41+W41 -> 0
C42: 0 | D42: 2 | G42: =$C42*$F42*$D42 -> 0 | I42: =$C42*$H42*$D42 -> 0 | K42: =$C42*$J42*$D42 -> 0 | M42: =$C42*$L42*$D42 -> 0 | O42: =$C42*$N42*$D42 -> 0 | Q42: =$C42*$P42*$D42 -> 0 | S42: =$C42*$R42*$D42 -> 0 | U42: =$C42*$T42*$D42 -> 0 | W42: =$C42*$V42*$D42 -> 0 | X42: =G42+I42+K42+M42+O42+Q42+S42+U42+W42 -> 0
C43: 0 | D43: 2 | G43: =$C43*$F43*$D43 -> 0 | I43: 0 | K43: 0 | M43: 0 | O43: 0 | Q43: 0 | S43: 0 | U43: 0 | W43: 0 | X43: =G43+I43+K43+M43+O43+Q43+S43+U43+W43 -> 0
C44: 0 | D44: 2 | G44: 0 | I44: 0 | K44: 0 | M44: 0 | O44: 0 | Q44: 0 | S44: 0 | U44: 0 | W44: 0 | X44: 0
C45: 0 | D45: 2 | G45: 0 | I45: 0 | K45: 0 | M45: 0 | O45: 0 | Q45: 0 | S45: 0 | U45: 0 | W45: 0 | X45: 0
C46: 0 | D46: 2 | G46: 0 | I46: 0 | K46: 0 | M46: 0 | O46: 0 | Q46: 0 | S46: 0 | U46: 0 | W46: 0 | X46: 0
C47: 0 | D47: 2 | G47: 0 | I47: 0 | K47: 0 | M47: 0 | O47: 0 | Q47: 0 | S47: =$C47*$R47*$D47 -> 0 | U47: 0 | W47: =$C47*$V47*$D47 -> 0 | X47: 0
C48: 0 | D48: 2 | G48: 0 | I48: 0 | K48: 0 | M48: 0 | O48: 0 | Q48: 0 | S48: 0 | U48: 0 | W48: 0 | X48: 0
C49: 0 | D49: 2 | G49: 0 | I49: 0 | K49: 0 | M49: 0 | O49: 0 | Q49: 0 | S49: 0 | U49: =$C49*$T49*$D49 -> 0 | W49: 0 | X49: 0
C50: 0 | D50: 2 | G50: 0 | I50: =$C50*$H50*$D50 -> 0 | K50: 0 | M50: 0 | O50: 0 | Q50: =$C50*$P50*$D50 -> 0 | S50: 0 | U50: =$C50*$T50*$D50 -> 0 | W50: 0 | X50: 0
A51: Other 1 (Specify) | C51: 0 | D51: 2 | G51: 0 | I51: =$C51*$H51*$D51 -> 0 | K51: 0 | M51: 0 | O51: 0 | Q51: =$C51*$P51*$D51 -> 0 | S51: =$C51*R51 -> 0 | U51: =$C51*$T51*$D51 -> 0 | W51: 0 | X51: 0
A52: Other 2 (Specify) | C52: 0 | D52: 2 | G52: 0 | I52: 0 | K52: 0 | M52: 0 | O52: 0 | Q52: 0 | S52: 0 | U52: 0 | W52: 0 | X52: 0
A53: Total Equipment | F53: =SUM(F41:F50) -> 0 | G53: =SUM(G41:G52) -> 0 | H53: =SUM(H41:H50) -> 0 | I53: =SUM(I41:I52) -> 0 | J53: =SUM(J41:J50) -> 0 | K53: =SUM(K41:K52) -> 0 | L53: =SUM(L41:L50) -> 0 | M53: =SUM(M41:M52) -> 0 | N53: =SUM(N41:N50) -> 0 | O53: =SUM(O41:O52) -> 0 | P53: =SUM(P41:P50) -> 0 | Q53: =SUM(Q41:Q52) -> 0 | R53: =SUM(R41:R50) -> 0 | S53: =SUM(S41:S52) -> 0 | T53: =SUM(T41:T50) -> 0 | U53: =SUM(U41:U52) -> 0 | V53: =SUM(V41:V50) -> 0 | W53: =SUM(W41:W52) -> 0 | X53: =SUM(X41:X52) -> 0
F56: PART B4 : Yearly Services (Includes travelling and travelling time)
A57: Machine Name & Type (Only CTX and XCT) | B57: Machine Model | C57: Rate | D57: Number of Services | F57: ORTIA | H57: CTIA | J57: KSIA | L57: CDSIA | N57: GRJ | P57: KPA | R57: BFIA | T57: KIM | V57: UPN | X57: Total
F58: QTY | G58: (a) = Amount | H58: QTY | I58: (b) = Amount | J58: QTY | K58: (c) = Amount | L58: QTY | M58: (d) = Amount | N58: QTY | O58: (e) = Amount | P58: QTY | Q58: (f) = Amount | R58: QTY | S58: (g) = Amount | T58: QTY | U58: (h) = Amount | V58: QTY | W58: (i) = Amount | X58: (j) = (a) + (b) + (c) + (d) + (e) + (f) + (g) + (h) + (i)
C59: 0 | D59: 1 | G59: =$C59*$F59*$D59 -> 0 | I59: =$C59*$H59*$D59 -> 0 | K59: =$C59*$J59*$D59 -> 0 | M59: =$C59*L59 -> 0 | O59: =$C59*$N59*$D59 -> 0 | Q59: =$C59*$P59*$D59 -> 0 | S59: =$C59*$R59*$D59 -> 0 | U59: =$C59*$T59*$D59 -> 0 | W59: =$C59*$V59*$D59 -> 0 | X59: =G59+I59+K59+M59+O59+Q59+S59+U59+W59 -> 0
C60: 0 | D60: 1 | G60: =$C60*$F60*$D60 -> 0 | I60: =$C60*$H60*$D60 -> 0 | K60: =$C60*$J60*$D60 -> 0 | M60: =$C60*L60 -> 0 | O60: =$C60*$N60*$D60 -> 0 | Q60: =$C60*$P60*$D60 -> 0 | S60: =$C60*$R60*$D60 -> 0 | U60: =$C60*$T60*$D60 -> 0 | W60: =$C60*$V60*$D60 -> 0 | X60: =G60+I60+K60+M60+O60+Q60+S60+U60+W60 -> 0
C61: 0 | D61: 1 | G61: 0 | I61: 0 | K61: 0 | M61: 0 | O61: 0 | Q61: 0 | S61: 0 | U61: =$C61*$T61*$D61 -> 0 | W61: 0 | X61: 0
C62: 0 | D62: 1 | G62: 0 | I62: 0 | K62: 0 | M62: 0 | O62: 0 | Q62: 0 | S62: 0 | U62: 0 | W62: 0 | X62: 0
C63: 0 | D63: 1 | G63: 0 | I63: 0 | K63: 0 | M63: 0 | O63: 0 | Q63: 0 | S63: 0 | U63: 0 | W63: 0 | X63: 0
C64: 0 | D64: 1 | G64: 0 | I64: 0 | K64: 0 | M64: 0 | O64: 0 | Q64: 0 | S64: 0 | U64: 0 | W64: 0 | X64: 0
C65: 0 | D65: 1 | G65: 0 | I65: 0 | K65: 0 | M65: 0 | O65: 0 | Q65: =$C65*$P65*$D65 -> 0 | S65: =$C65*$R65*$D65 -> 0 | U65: 0 | W65: =$C65*$V65*$D65 -> 0 | X65: 0
C66: 0 | D66: 1 | G66: 0 | I66: =$C66*$H66*$D66 -> 0 | K66: 0 | M66: 0 | O66: 0 | Q66: 0 | S66: =$C66*$R66*$D66 -> 0 | U66: 0 | W66: 0 | X66: 0
C67: 0 | D67: 1 | G67: 0 | I67: 0 | K67: 0 | M67: 0 | O67: 0 | Q67: 0 | S67: 0 | U67: 0 | W67: 0 | X67: 0
C68: 0 | D68: 1 | G68: 0 | I68: 0 | K68: 0 | M68: =$C68*L68 -> 0 | O68: 0 | Q68: 0 | S68: 0 | U68: =$C68*$T68*$D68 -> 0 | W68: 0 | X68: 0
A69: Other 1 (Specify) | C69: 0 | D69: 1 | G69: 0 | I69: 0 | K69: 0 | M69: =$C69*$L69*$D69 -> 0 | O69: 0 | Q69: 0 | S69: =$C69*R69 -> 0 | U69: =$C69*$T69*$D69 -> 0 | W69: 0 | X69: 0
A70: Other 2 (Specify) | C70: 0 | D70: 1 | G70: 0 | I70: 0 | K70: 0 | M70: 0 | O70: 0 | Q70: 0 | S70: 0 | U70: 0 | W70: 0 | X70: 0
A71: Total Equipment | F71: =SUM(F59:F68) -> 0 | G71: =SUM(G59:G70) -> 0 | H71: =SUM(H59:H68) -> 0 | I71: =SUM(I59:I70) -> 0 | J71: =SUM(J59:J68) -> 0 | K71: =SUM(K59:K70) -> 0 | L71: =SUM(L59:L68) -> 0 | M71: =SUM(M59:M70) -> 0 | N71: =SUM(N59:N68) -> 0 | O71: =SUM(O59:O70) -> 0 | P71: =SUM(P59:P68) -> 0 | Q71: =SUM(Q59:Q70) -> 0 | R71: =SUM(R59:R68) -> 0 | S71: =SUM(S59:S70) -> 0 | T71: =SUM(T59:T68) -> 0 | U71: =SUM(U59:U70) -> 0 | V71: =SUM(V59:V68) -> 0 | W71: =SUM(W59:W70) -> 0 | X71: =SUM(X59:X70) -> 0
A73: Sub Total B - Preventative Maintenance | X73: =X17+X35+X53+X71 -> 0

Sheet C-Call Outs
A1: PART C : Security Equipment Callouts (Includes travelling, travelling time & first hour on site)
A2: Airport | B2: Service Description | C2: (a) | D2: Unit of Measure | E2: (b) | F2: (c) = (a) x (b)
C3: Number of Callouts | E3: Unit Price | F3: Price per Year Excluding VAT
A4: ORTIA | B4: Call out Fee | C4: 48 | D4: Each | F4: =E4*C4 -> 0
A5: CTIA | B5: Call out Fee | C5: 36 | D5: Each | F5: =E5*C5 -> 0
A6: KSIA | B6: Call out Fee | C6: 24 | D6: Each | F6: 0
A7: CDSIA | B7: Call out Fee | C7: 12 | D7: Each | F7: 0
A8: GRJ | B8: Call out Fee | C8: 12 | D8: Each | F8: 0
A9: KPA | B9: Call out Fee | C9: 12 | D9: Each | F9: 0
A10: BFIA | B10: Call out Fee | C10: 12 | D10: Each | F10: 0
A11: KIM | B11: Call out Fee | C11: 12 | D11: Each | F11: 0
A12: UPIA | B12: Call out Fee | C12: 12 | D12: Each | F12: 0
A14: Sub Total C - Callouts | F14: =SUM(F4:F12) -> 0

Sheet D-Cluster Spares
B1: PART D : Spare Parts
B2: Cluster 1 | C2: Spare Part Description | D2: Spare Part Number | E2: (a) | F2: (b) | G2: (c) | H2: (d) = (a) x (c) | I2: (e) | J2: (f) = (d) x (e) | K2: (g) = (d) + (f)
E3: Reccomended No. of units | F3: Unit of Measure | G3: Price / Unit | H3: Total Excl VAT | I3: Mark-up Percentage | J3: Markup Value Excl VAT | K3: Total Excl VAT
B4: Cluster 1 - OR Tambo International (Including BFIA) | C4: Example 1 | D4: Example 1 | E4: 2 | F4: Each | G4: R100.00 | H4: =G4*E4 -> R200.00 | I4: 10.00% | J4: =H4*I4 -> R20.00 | K4: =H4+J4 -> R220.00
F5: Each | H5: =G5*E5 -> 0 | J5: =H5*I5 -> 0 | K5: =H5+J5 -> 0
F6: Each | H6: =G6*E6 -> 0 | J6: 0 | K6: 0
F7: Each | H7: 0 | J7: 0 | K7: 0
F8: Each | H8: 0 | J8: 0 | K8: 0
F9: Each | H9: 0 | J9: 0 | K9: 0
F10: Each | H10: 0 | J10: 0 | K10: 0
F11: Each | H11: 0 | J11: 0 | K11: 0
F12: Each | H12: 0 | J12: 0 | K12: 0
F13: Each | H13: =G13*E13 -> 0 | J13: 0 | K13: 0
F14: Each | H14: 0 | J14: 0 | K14: 0
F15: Each | H15: 0 | J15: 0 | K15: 0
F16: Each | H16: 0 | J16: 0 | K16: 0
F17: Each | H17: 0 | J17: 0 | K17: 0
F18: Each | H18: 0 | J18: 0 | K18: 0
F19: Each | H19: 0 | J19: 0 | K19: 0
F20: Each | H20: 0 | J20: 0 | K20: 0
F21: Each | H21: 0 | J21: 0 | K21: 0
F22: Each | H22: 0 | J22: 0 | K22: 0
C23: Total Cluster 1 Spares per Annum | K23: =SUM(K4:K22) -> R220.00
B26: Cluster 2 | C26: Spare Part Description | D26: Spare Part Number | E26: (a) | F26: (b) | G26: (c) | H26: (d) = (a) x (c) | I26: (e) | J26: (f) = (d) x (e) | K26: (g) = (d) + (f)
E27: Reccomended No. of units | F27: Unit of Measure | G27: Price / Unit | H27: Total Excl VAT | I27: Mark-up Percentage | J27: Markup Value Excl VAT | K27: Total Excl VAT
B28: Cluster 2 - Cape Town International Airport (Including GRJ / KIM / UPIA) | F28: Each | H28: =G28*E28 -> 0 | J28: =H28*I28 -> 0 | K28: =H28+J28 -> 0
F29: Each | H29: =G29*E29 -> 0 | J29: =H29*I29 -> 0 | K29: =H29+J29 -> 0
F30: Each | H30: =G30*E30 -> 0 | J30: 0 | K30: 0
F31: Each | H31: 0 | J31: 0 | K31: 0
F32: Each | H32: 0 | J32: 0 | K32: 0
F33: Each | H33: 0 | J33: 0 | K33: 0
F34: Each | H34: 0 | J34: 0 | K34: 0
F35: Each | H35: 0 | J35: 0 | K35: 0
F36: Each | H36: 0 | J36: 0 | K36: 0
F37: Each | H37: 0 | J37: 0 | K37: 0
F38: Each | H38: 0 | J38: 0 | K38: 0
F39: Each | H39: 0 | J39: 0 | K39: 0
F40: Each | H40: 0 | J40: 0 | K40: 0
F41: Each | H41: 0 | J41: 0 | K41: 0
F42: Each | H42: 0 | J42: 0 | K42: 0
F43: Each | H43: 0 | J43: 0 | K43: 0
F44: Each | H44: 0 | J44: 0 | K44: 0
F45: Each | H45: 0 | J45: 0 | K45: 0
F46: Each | H46: 0 | J46: 0 | K46: 0
C47: Total Cluster 2 Spares per Annum | K47: =SUM(K28:K46) -> 0
B50: Cluster 3 | C50: Spare Part Description | D50: Spare Part Number | E50: (a) | F50: (b) | G50: (c) | H50: (d) = (a) x (c) | I50: (e) | J50: (f) = (d) x (e) | K50: (g) = (d) + (f)
E51: Reccomended No. of units | F51: Unit of Measure | G51: Price / Unit | H51: Total Excl VAT | I51: Mark-up Percentage | J51: Markup Value Excl VAT | K51: Total Excl VAT
B52: Cluster 3 - King Shaka International Airport (Including CDSIA / KPA) | F52: Each | H52: =G52*E52 -> 0 | J52: =H52*I52 -> 0 | K52: =H52+J52 -> 0
F53: Each | H53: =G53*E53 -> 0 | J53: =H53*I53 -> 0 | K53: =H53+J53 -> 0
F54: Each | H54: =G54*E54 -> 0 | J54: 0 | K54: 0
F55: Each | H55: 0 | J55: 0 | K55: 0
F56: Each | H56: 0 | J56: 0 | K56: 0
F57: Each | H57: 0 | J57: 0 | K57: 0
F58: Each | H58: 0 | J58: 0 | K58: 0
F59: Each | H59: 0 | J59: 0 | K59: 0
F60: Each | H60: 0 | J60: 0 | K60: =H60+J60 -> 0
F61: Each | H61: 0 | J61: 0 | K61: 0
F62: Each | H62: 0 | J62: 0 | K62: 0
F63: Each | H63: 0 | J63: 0 | K63: 0
F64: Each | H64: 0 | J64: 0 | K64: 0
F65: Each | H65: 0 | J65: 0 | K65: 0
F66: Each | H66: 0 | J66: 0 | K66: 0
F67: Each | H67: 0 | J67: 0 | K67: 0
F68: Each | H68: 0 | J68: 0 | K68: 0
F69: Each | H69: 0 | J69: 0 | K69: 0
F70: Each | H70: 0 | J70: 0 | K70: 0
C71: Total Cluster 3 Spares per Annum | K71: =SUM(K52:K70) -> 0
B73: Sub Total D - Spares | K73: =K23+K47+K71 -> R220

Sheet IBs (hidden)
A2: Model | B2: ORTIA | C2: CTIA | D2: KSIA | E2: PLZ | F2: GRJ | G2: ELS | H2: BRF | I2: KIM | J2: UPN | K2: Totals
A3: HS6046si | B3: 59 | C3: 36 | D3: 21 | E3: 4 | F3: 3 | G3: 4 | H3: 4 | I3: 2 | J3: 1 | K3: =SUM(B3:J3) -> 134
A4: HS 100100V | B4: 2 | C4: 0 | D4: 1 | E4: 0 | F4: 0 | G4: 0 | H4: 0 | I4: 0 | J4: 1 | K4: 4
A5: HS 7555 Si | B5: 2 | C5: 0 | D5: 0 | E5: 0 | F5: 0 | G5: 0 | H5: 0 | I5: 1 | J5: 2 | K5: 5
A6: HS 150150 | B6: 2 | C6: 2 | D6: 1 | E6: 0 | F6: 0 | G6: 0 | H6: 0 | I6: 0 | J6: 0 | K6: 5
A7: HS10080EDts | E7: 0 | K7: 0
A8: CEIA-HIPE-PNZ | B8: 56 | C8: 24 | D8: 22 | E8: 5 | F8: 4 | G8: 4 | H8: 4 | I8: 0 | J8: 3 | K8: 122
A9: IONSCAN 400B | B9: 5 | C9: 2 | D9: 2 | E9: 1 | F9: 1 | G9: 1 | H9: 1 | I9: 2 | J9: 1 | K9: 16
A10: Matrix Server | B10: 1 | C10: 0 | D10: 1 | E10: 0 | F10: 0 | G10: 0 | H10: 0 | I10: 0 | J10: 0 | K10: 2
A11: Other AMD | B11: 0 | C11: 1 | D11: 0 | E11: 0 | F11: 0 | G11: 0 | H11: 0 | I11: 0 | J11: 0 | K11: 1
A12: Other X-ray | B12: 0 | C12: 0 | D12: 0 | E12: 2 | F12: 0 | G12: 2 | H12: 0 | I12: 0 | J12: 0 | K12: 4
A13: TIP Server | B13: 1 | C13: 2 | D13: 1 | E13: 0 | F13: 0 | G13: 1 | H13: 0 | I13: 0 | J13: 0 | K13: 5
A14: Total Equipment | B14: =SUM(B3:B13) -> 128 | C14: 67 | D14: 49 | E14: =SUM(E3:E13) -> 12 | F14: 8 | G14: 12 | H14: 9 | I14: 5 | J14: 8 | K14: 298

Sheet Summary (hidden)
F1: Restrict Bid (incl vat) | G1: Restrict Bid (excl vat) | H1: BOQ | I1: Diff
E2: PLZ | F2: 496,413.68 | G2: =F2/1.15 -> 431,664.07 | H2: =#REF! ->  | I2: =H2-G2 ->  | J2: =I2/G2 ->  | L2: =I2/5/12 -> 
E3: GRJ | F3: 1,730,089.56 | G3: =F3/1.15 -> 1,504,425.70 | H3: =#REF! ->  | I3: =H3-G3 ->  | J3: =I3/G3 ->  | L3: =I3/5/12 ->  | N3: =76000*5 -> 380000
E4: ELS | F4: 3,629,261.92 | G4: 3,155,879.93 | H4: ='Summary Costs'!#REF! ->  | L4: =I4/5/12 -> 
E5: BFN | F5: 630,446.84 | G5: 548,214.64 | H5: =#REF! -> 
E6: KIM | F6: 703,751.60 | G6: 611,957.91 | H6: =#REF! -> 
E7: UPN | F7: 2,152,208.27 | G7: 1,871,485.45 | H7: =#REF! -> 
E8: RAs | F8: =SUM(F2:F7) -> 9,342,171.87 | G8: =SUM(G2:G7) -> 8,123,627.71
